bitfinex/quotes_BTCUSD_20250817
["timestamp","ask_amount","ask_price","bid_price","bid_amount"]
[1755431751987,0.38919309,118480.0,118470.0,0.00198]
[1755431758787,0.38692309,118480.0,118470.0,0.00504]
[1755431759719,0.38899309,118480.0,118470.0,0.00504]
[1755431760659,0.38899309,118480.0,118470.0,0.00198]
[1755431766993,0.39204309,118480.0,118470.0,0.00198]
[1755431775070,0.39204309,118480.0,118470.0,0.01942902]
[1755431775316,0.43760932,118480.0,118470.0,0.01744902]
[1755431775743,0.39204309,118480.0,118470.0,0.01744902]
[1755431813023,0.40788006,118480.0,118470.0,0.01744902]
[1755431817128,0.40787874,118480.0,118470.0,0.01744902]
[1755431817608,0.39204309,118480.0,118470.0,0.01744902]
[1755431817818,0.40787857,118480.0,118470.0,0.01744902]
[1755431818028,0.47274842,118480.0,118470.0,0.01744902]
[1755431820311,0.4727481,118480.0,118470.0,0.01744902]
[1755431825131,0.45691294,118480.0,118470.0,0.01744902]
[1755431825351,0.47274805,118480.0,118470.0,0.01744902]
[1755431825820,0.47274815,118480.0,118470.0,0.01744902]
[1755431827348,0.34454815,118480.0,118470.0,0.01744902]
[1755431827571,0.47658815,118480.0,118470.0,0.01955902]
[1755431827803,0.47353815,118480.0,118470.0,0.01955902]
[1755431828027,0.33942815,118480.0,118470.0,0.02274902]
[1755431828301,0.17390904,118480.0,118470.0,0.02274902]
[1755431828535,0.30590904,118480.0,118470.0,0.04679902]
[1755431828950,0.30590904,118480.0,118470.0,0.04890925]
[1755431829665,0.30490904,118480.0,118470.0,0.04679902]
[1755431829855,0.30490904,118480.0,118470.0,0.06836209]
[1755431830057,0.30490904,118480.0,118470.0,0.07036209]
[1755431830278,0.30490904,118480.0,118470.0,0.04879902]
[1755431830490,0.30490904,118480.0,118470.0,0.02474902]
[1755431831186,0.30290904,118480.0,118470.0,0.02474902]
[1755431831434,0.30290904,118480.0,118470.0,0.02674902]
[1755431838051,0.32824904,118480.0,118470.0,0.02674902]
[1755431838622,0.33329904,118480.0,118470.0,0.02355902]
[1755431839214,0.33021904,118480.0,118470.0,0.02355902]
[1755431839972,0.33021904,118480.0,118470.0,0.04311725]
[1755431840188,0.33329904,118480.0,118470.0,0.04100725]
[1755431840400,0.33329904,118480.0,118470.0,0.02144902]
[1755431853105,0.33329904,118480.0,118470.0,0.01944902]
[1755431853512,0.33329904,118480.0,118470.0,0.01844902]
[1755431853975,0.33329904,118480.0,118470.0,0.01944902]
[1755431854196,0.41811309,118480.0,118470.0,0.01744902]
[1755431859353,0.47934174,118480.0,118470.0,0.01744902]
[1755431861551,0.47938174,118480.0,118470.0,0.01744902]
[1755431869601,0.41815309,118480.0,118470.0,0.01744902]
[1755431872579,0.41767309,118480.0,118470.0,0.01744902]
[1755431883261,0.41731309,118480.0,118470.0,0.01744902]
[1755431887229,0.41715309,118480.0,118470.0,0.01744902]
[1755431893502,0.44252509,118480.0,118470.0,0.01744902]
[1755431897776,0.41715309,118480.0,118470.0,0.01744902]
[1755431898194,0.28611309,118480.0,118470.0,0.01954902]
[1755431898422,0.41683309,118480.0,118470.0,0.01954902]
[1755431898630,0.44220409,118480.0,118470.0,0.01954902]
[1755431905576,0.44220409,118480.0,118470.0,0.01744902]
[1755431922780,0.30643409,118480.0,118470.0,0.02238902]
[1755431922957,0.43647409,118480.0,118470.0,0.02238902]
[1755431923881,0.41110309,118480.0,118470.0,0.02238902]
[1755431934825,0.41314309,118480.0,118470.0,0.02238902]
[1755431935436,0.41314309,118480.0,118470.0,0.01940902]
[1755431941053,0.41611309,118480.0,118470.0,0.01940902]
[1755431942936,0.41314309,118480.0,118470.0,0.01940902]
[1755431944667,0.28310309,118480.0,118470.0,0.01940902]
[1755431944915,0.32584904,118480.0,118470.0,0.02263902]
[1755431945345,0.32584904,118480.0,118470.0,0.04178618]
[1755431947000,0.32784904,118480.0,118470.0,0.03855618]
[1755431951629,0.33103904,118480.0,118470.0,0.03855618]
[1755431955320,0.33103904,118480.0,118470.0,0.01940902]
[1755431961705,0.33063904,118480.0,118470.0,0.01940902]
[1755431962458,0.20143904,118480.0,118470.0,0.01940902]
[1755431962619,0.33063904,118480.0,118470.0,0.01940902]
[1755431968543,0.33063904,118480.0,118470.0,0.01744902]
[1755431982795,0.20143904,118480.0,118470.0,0.01744902]
[1755431982997,0.33063904,118480.0,118470.0,0.01744902]
[1755431996930,0.33063904,118480.0,118470.0,0.03640022]
[1755431998080,0.33063904,118480.0,118470.0,0.03837022]
[1755431998199,0.33063904,118480.0,118470.0,0.04048045]
[1755432000595,0.32744904,118480.0,118470.0,0.04048045]
[1755432000800,0.32544904,118480.0,118470.0,0.04353045]
[1755432001222,0.19624904,118480.0,118470.0,0.04353045]
[1755432001357,0.32540904,118480.0,118470.0,0.04353045]
[1755432001568,0.19624904,118480.0,118470.0,0.04353045]
[1755432001784,0.32540904,118480.0,118470.0,0.04353045]
[1755432002867,0.32330486,118480.0,118470.0,0.04353045]
[1755432003090,0.32540904,118480.0,118470.0,0.04353045]
[1755432003842,0.1545,118480.0,118470.0,0.21234956]
[1755432004056,0.1545,118480.0,118470.0,0.29505338]
[1755432004057,0.02744418,118480.0,118470.0,0.29505338]
[1755432004911,0.02744418,118480.0,118470.0,0.32041838]
[1755432006830,0.02744418,118480.0,118470.0,0.32441838]
[1755432006995,0.02744418,118480.0,118470.0,0.45357838]
[1755432007353,0.02744418,118480.0,118470.0,0.45657838]
[1755432008050,0.02534,118480.0,118470.0,0.45657838]
[1755432008495,0.02744418,118480.0,118470.0,0.45657838]
[1755432009152,0.02534,118480.0,118470.0,0.45657838]
[1755432009375,0.02534,118480.0,118470.0,0.72327838]
[1755432009585,0.02744418,118480.0,118470.0,0.72327838]
[1755432010026,0.02534,118480.0,118470.0,0.72327838]
[1755432010268,0.02744418,118480.0,118470.0,0.72327838]
[1755432014495,0.02534,118480.0,118470.0,0.72327838]
[1755432015457,0.02534,118480.0,118470.0,1.08770838]
[1755432020260,0.02534,118480.0,118470.0,1.11270838]
[1755432021709,0.02534,118480.0,118470.0,1.10870838]
[1755432022140,0.02534,118480.0,118470.0,1.11270838]
[1755432022749,0.02534,118480.0,118470.0,1.11670838]
[1755432041724,0.02414408,118480.0,118470.0,1.11670838]
[1755432044409,0.02414408,118480.0,118470.0,1.09227838]
[1755432082046,0.02627408,118480.0,118470.0,0.95809838]
[1755432082277,0.02922408,118480.0,118470.0,0.95809838]
[1755432082498,0.02922408,118480.0,118470.0,1.04460936]
[1755432082729,0.26779498,118480.0,118470.0,0.40683025]
[1755432082951,0.26779498,118480.0,118470.0,0.70060936]
[1755432083182,0.09899012,118480.0,118470.0,0.70060936]
[1755432084068,0.26779498,118480.0,118470.0,0.70060936]
[1755432084704,0.26779498,118480.0,118470.0,0.70360936]
[1755432085249,0.03132826,118480.0,118470.0,0.70060936]
[1755432085649,0.03132826,118480.0,118470.0,0.70260936]
[1755432091525,0.20013312,118480.0,118470.0,0.70260936]
[1755432101328,0.20013312,118480.0,118470.0,0.69560936]
[1755432102215,0.20913312,118480.0,118470.0,0.69560936]
[1755432106685,0.04032826,118480.0,118470.0,0.69560936]
[1755432107043,0.20913312,118480.0,118470.0,0.69560936]
[1755432109708,0.20913312,118480.0,118470.0,0.69775936]
[1755432110473,0.20913312,118480.0,118470.0,0.1499112]
[1755432112652,0.20913312,118480.0,118470.0,0.31873031]
[1755432114964,0.03524826,118480.0,118470.0,0.32088031]
[1755432115181,0.03314408,118480.0,118470.0,0.74874436]
[1755432115628,0.03314408,118480.0,118470.0,0.77410636]
[1755432116065,0.03314408,118480.0,118470.0,1.04080636]
[1755432131805,0.03314408,118480.0,118470.0,1.05825538]
[1755432136794,0.03280858,118480.0,118470.0,1.05825538]
[1755432137037,0.03477858,118480.0,118470.0,1.05825538]
[1755432155337,0.03280858,118480.0,118470.0,1.05825538]
[1755432164857,0.03280858,118480.0,118470.0,1.09604952]
[1755432169140,0.20667344,118480.0,118470.0,0.92203041]
[1755432169369,0.20667344,118480.0,118470.0,0.65533041]
[1755432169590,0.20877762,118480.0,118470.0,0.26008725]
[1755432169872,0.20877762,118480.0,118470.0,0.0463132]
[1755432170074,0.20877762,118480.0,118470.0,0.0209512]
[1755432170292,0.27643948,118480.0,118470.0,0.002]
[1755432170734,0.20877762,118480.0,118470.0,0.002]
[1755432173720,0.21731066,118480.0,118470.0,0.002]
[1755432181971,0.20877762,118480.0,118470.0,0.002]
[1755432182447,0.33781762,118480.0,118470.0,0.002]
[1755432195047,0.33781762,118480.0,118470.0,0.01944902]
[1755432196719,0.42263167,118480.0,118470.0,0.01944902]
[1755432197621,0.41363167,118480.0,118470.0,0.01744902]
[1755432198135,0.42463167,118480.0,118470.0,0.01744902]
[1755432199077,0.42463167,118480.0,118470.0,0.01447296]
[1755432199310,0.17093754,118460.0,118450.0,0.10307834]
[1755432199518,0.30001754,118460.0,118450.0,0.17991365]
[1755432200626,0.30001754,118460.0,118450.0,0.17240667]
[1755432200849,0.30101754,118460.0,118450.0,0.17440667]
[1755432201071,0.30101754,118460.0,118450.0,0.17373657]
[1755432201292,0.30101754,118460.0,118450.0,0.17962782]
[1755432202288,0.30101754,118460.0,118450.0,0.16199399]
[1755432202758,0.30101754,118460.0,118450.0,0.15252455]
[1755432203223,0.30101754,118460.0,118450.0,0.07765924]
[1755432204980,0.30101754,118460.0,118450.0,0.07623606]
[1755432207423,0.30316754,118460.0,118450.0,0.07623606]
[1755432209201,0.30316754,118460.0,118450.0,0.07315606]
[1755432213142,0.30316754,118460.0,118450.0,0.07617606]
[1755432214402,0.30316754,118460.0,118450.0,0.10489181]
[1755432214616,0.30101754,118460.0,118450.0,0.10489181]
[1755432215588,0.17193754,118460.0,118450.0,0.10489181]
[1755432216220,0.17193754,118460.0,118450.0,0.27373942]
[1755432216648,0.17193754,118460.0,118450.0,0.10489181]
[1755432217069,0.17193754,118460.0,118450.0,0.07617606]
[1755432220250,0.17193754,118460.0,118450.0,0.24502367]
[1755432220577,0.17193754,118460.0,118450.0,0.07617606]
[1755432224084,0.17409754,118460.0,118450.0,0.07617606]
[1755432226046,0.17409754,118460.0,118450.0,0.07315606]
[1755432226787,0.17409754,118460.0,118450.0,0.10187181]
[1755432231379,0.17409754,118460.0,118450.0,0.27071942]
[1755432240641,0.00310418,118460.0,118450.0,0.27373942]
[1755432240876,0.001,118460.0,118450.0,0.48783347]
[1755432241105,0.00310418,118460.0,118450.0,0.51320247]
[1755432241805,0.17193754,118460.0,118450.0,0.51320247]
[1755432242760,0.00310418,118460.0,118450.0,0.51320247]
[1755432242944,0.17193754,118460.0,118450.0,0.51320247]
[1755432249162,0.17193754,118460.0,118450.0,0.48448672]
[1755432249371,0.17193754,118460.0,118450.0,0.45911772]
[1755432250993,0.17402754,118460.0,118450.0,0.07118606]
[1755432251229,0.17714754,118460.0,118450.0,0.07118606]
[1755432271883,0.17714754,118460.0,118450.0,0.07321606]
[1755432272088,0.17714754,118460.0,118450.0,0.28287887]
[1755432272289,0.17402754,118460.0,118450.0,0.28287887]
[1755432273277,0.17402754,118460.0,118450.0,0.11403126]
[1755432275457,0.17402754,118460.0,118450.0,0.28287887]
[1755432279967,0.17193754,118460.0,118450.0,0.28600887]
[1755432281554,0.17408754,118460.0,118450.0,0.28600887]
[1755432283347,0.17408754,118460.0,118450.0,0.28287887]
[1755432289647,0.17723754,118460.0,118450.0,0.28287887]
[1755432292038,0.17408754,118460.0,118450.0,0.28287887]
[1755432293806,0.17408754,118460.0,118450.0,0.28600887]
[1755432294762,0.17408754,118460.0,118450.0,0.28287887]
[1755432295557,0.17723754,118460.0,118450.0,0.28287887]
[1755432300708,0.17408754,118460.0,118450.0,0.28287887]
[1755432301701,0.17723754,118460.0,118450.0,0.28287887]
[1755432303408,0.17723754,118460.0,118450.0,0.11403126]
[1755432303587,0.17723754,118460.0,118450.0,0.28287887]
[1755432305798,0.17723754,118460.0,118450.0,0.11403126]
[1755432306278,0.17723754,118460.0,118450.0,0.28287887]
[1755432307348,0.17723754,118460.0,118450.0,0.11403126]
[1755432308061,0.17723754,118460.0,118450.0,0.28287887]
[1755432308412,0.17723754,118460.0,118450.0,0.11403126]
[1755432317801,0.17723754,118460.0,118450.0,0.11200126]
[1755432318227,0.1856189,118460.0,118450.0,0.11200126]
[1755432318378,0.17723754,118460.0,118450.0,0.11200126]
[1755432324934,0.17723754,118460.0,118450.0,0.07118606]
[1755432325136,0.30627754,118460.0,118450.0,0.07118606]
[1755432332731,0.30627754,118460.0,118450.0,0.07319606]
[1755432352530,0.30627754,118460.0,118450.0,0.07118606]
[1755432360645,0.17723754,118460.0,118450.0,0.07118606]
[1755432360857,0.30659754,118460.0,118450.0,0.09549782]
[1755432383403,0.30659754,118460.0,118450.0,0.07118606]
[1755432398297,0.3742594,118460.0,118450.0,0.05373704]
[1755432398535,0.40739144,118460.0,118450.0,0.05373704]
[1755432398790,0.44321368,118460.0,118450.0,0.05373704]
[1755432399242,0.44321368,118460.0,118450.0,0.07118606]
[1755432399708,0.44321368,118460.0,118450.0,0.06918606]
[1755432400362,0.44221368,118460.0,118450.0,0.06918606]
[1755432400737,0.44921368,118460.0,118450.0,0.06918606]
[1755432400938,0.45021368,118460.0,118450.0,0.06918606]
[1755432401552,0.44321368,118460.0,118450.0,0.06918606]
[1755432402166,0.45121368,118460.0,118450.0,0.06918606]
[1755432403803,0.41808164,118460.0,118450.0,0.06918606]
[1755432405183,0.50289569,118460.0,118450.0,0.05173704]
[1755432405370,0.52827169,118460.0,118450.0,0.05173704]
[1755432411060,0.49244945,118460.0,118450.0,0.05173704]
[1755432418620,0.83244945,118460.0,118450.0,0.05173704]
[1755432427214,0.76478759,118460.0,118450.0,0.05173704]
[1755432427401,0.86543043,118460.0,118450.0,0.05173704]
[1755432430133,0.84960883,118460.0,118450.0,0.05173704]
[1755432430316,0.86543457,118460.0,118450.0,0.05173704]
[1755432433374,0.86543351,118460.0,118450.0,0.05173704]
[1755432439719,0.91615463,118460.0,118450.0,0.05173704]
[1755432439908,0.86543463,118460.0,118450.0,0.05173704]
[1755432440355,0.89856667,118460.0,118450.0,0.05173704]
[1755432440614,0.90450117,118460.0,118450.0,0.05173704]
[1755432441708,0.91241336,118460.0,118450.0,0.05173704]
[1755432441915,1.61241336,118460.0,118450.0,0.05173704]
[1755432442350,0.91241336,118460.0,118450.0,0.05173704]
[1755432445306,1.61241336,118460.0,118450.0,0.05173704]
[1755432448331,1.60450117,118460.0,118450.0,0.05173704]
[1755432448538,1.61240828,118460.0,118450.0,0.05173704]
[1755432451178,1.70131828,118460.0,118450.0,0.05173704]
[1755432451395,1.61240828,118460.0,118450.0,0.05173704]
[1755432453142,0.17096605,118440.0,118430.0,0.02318]
[1755432453348,0.30108605,118440.0,118430.0,0.0251088]
[1755432454405,0.77352633,118440.0,118430.0,0.0251088]
[1755432454604,0.77352633,118440.0,118430.0,0.0259288]
[1755432455321,0.79890733,118440.0,118430.0,0.0259288]
[1755432456217,0.80490733,118440.0,118430.0,0.0259288]
[1755432456890,0.80490733,118440.0,118430.0,0.0249288]
[1755432457323,0.80590733,118440.0,118430.0,0.0249288]
[1755432458295,0.80790733,118440.0,118430.0,0.0259288]
[1755432458532,0.81095733,118440.0,118430.0,0.0209688]
[1755432460693,0.82677407,118440.0,118430.0,0.0209688]
[1755432466411,0.81095733,118440.0,118430.0,0.0209688]
[1755432466632,0.82676544,118440.0,118430.0,0.0209688]
[1755432468242,0.82676544,118440.0,118430.0,0.0208888]
[1755432469709,0.82676549,118440.0,118430.0,0.0208888]
[1755432472477,0.81095733,118440.0,118430.0,0.0208888]
[1755432472681,0.8267663,118440.0,118430.0,0.0208888]
[1755432473400,0.86518233,118440.0,118430.0,0.0208888]
[1755432475508,0.84937336,118440.0,118430.0,0.0208888]
[1755432475714,0.86518333,118440.0,118430.0,0.0208888]
[1755432476163,0.86518405,118440.0,118430.0,0.0208888]
[1755432476388,0.84937336,118440.0,118430.0,0.0208888]
[1755432476570,0.86518405,118440.0,118430.0,0.0208888]
[1755432481260,0.73506405,118440.0,118430.0,0.0208888]
[1755432481492,0.82728802,118440.0,118430.0,0.0208888]
[1755432483204,0.83322141,118440.0,118430.0,0.0208888]
[1755432483615,0.81741072,118440.0,118430.0,0.0208088]
[1755432483791,0.83323336,118440.0,118430.0,0.0208088]
[1755432484210,0.83323609,118440.0,118430.0,0.0208088]
[1755432484416,0.83323625,118440.0,118430.0,0.0208088]
[1755432489252,0.84115225,118440.0,118430.0,0.0208088]
[1755432489919,0.84115888,118440.0,118430.0,0.0208088]
[1755432490637,0.87698112,118440.0,118430.0,0.0208088]
[1755432492538,1.07986112,118440.0,118430.0,0.0208088]
[1755432492771,1.07986574,118440.0,118430.0,0.0208088]
[1755432493056,1.0798734,118440.0,118430.0,0.0208088]
[1755432496114,1.07987293,118440.0,118430.0,0.0208088]
[1755432498340,1.07987207,118440.0,118430.0,0.0207288]
[1755432498910,1.07987162,118440.0,118430.0,0.0207288]
[1755432502092,1.07986953,118440.0,118430.0,0.0207288]
[1755432502873,1.07986926,118440.0,118430.0,0.0207288]
[1755432506170,1.07982926,118440.0,118430.0,0.0207288]
[1755432506959,1.07982926,118440.0,118400.0,0.03083829]
[1755432506960,0.51100883,118410.0,118400.0,0.03083829]
[1755432507132,0.72851288,118410.0,118400.0,0.00247879]
[1755432507335,0.72851288,118410.0,118400.0,0.00552879]
[1755432507540,0.72638288,118410.0,118400.0,0.00552879]
[1755432507737,0.81120412,118410.0,118400.0,0.00552879]
[1755432508201,0.83659312,118410.0,118400.0,0.00552879]
[1755432509042,0.84259312,118410.0,118400.0,0.00652879]
[1755432509267,0.17102309,118400.0,118390.0,1e-08]
[1755432509509,0.17102309,118400.0,118390.0,0.00516251]
[1755432509510,0.30140337,118400.0,118390.0,0.00516251]
[1755432509816,0.43232337,118400.0,118390.0,0.00516251]
[1755432510019,0.45272337,118400.0,118390.0,0.00516251]
[1755432511622,0.48212637,118400.0,118390.0,0.00616251]
[1755432512357,0.46632242,118400.0,118390.0,0.00616251]
[1755432513252,0.46632242,118400.0,118390.0,0.00612251]
[1755432514227,0.46844242,118400.0,118390.0,0.00612251]
[1755432514431,0.67431796,118400.0,118390.0,0.00612251]
[1755432514733,0.65602214,118400.0,118390.0,0.00612251]
[1755432515135,0.65391796,118400.0,118390.0,0.00612251]
[1755432515351,0.65602214,118400.0,118390.0,0.00612251]
[1755432516374,0.64742309,118400.0,118390.0,0.00612251]
[1755432516832,0.64535891,118400.0,118390.0,0.00612251]
[1755432517006,0.64746309,118400.0,118390.0,0.00612251]
[1755432517219,0.64535891,118400.0,118390.0,0.00612251]
[1755432517425,0.64746309,118400.0,118390.0,0.00612251]
[1755432523042,0.64958309,118400.0,118390.0,0.00307251]
[1755432524937,0.65279309,118400.0,118390.0,0.00307251]
[1755432527795,0.65279309,118400.0,118390.0,0.00104251]
[1755432529952,0.65279309,118400.0,118390.0,0.00312251]
[1755432530375,0.64746309,118400.0,118390.0,0.00636251]
[1755432530709,0.64958309,118400.0,118390.0,0.00636251]
[1755432530885,0.64958309,118400.0,118390.0,0.00312251]
[1755432531931,0.64746309,118400.0,118390.0,0.00636251]
[1755432532548,0.64958309,118400.0,118390.0,0.00312251]
[1755432532749,0.65279309,118400.0,118390.0,0.00312251]
[1755432535449,0.65279309,118400.0,118390.0,0.00104251]
[1755432541107,0.65279309,118400.0,118390.0,0.00312251]
[1755432541328,0.64958309,118400.0,118390.0,0.00312251]
[1755432544021,0.64746309,118400.0,118390.0,0.00634251]
[1755432545060,0.64958309,118400.0,118390.0,0.00312251]
[1755432547202,0.64747891,118400.0,118390.0,0.00312251]
[1755432547409,0.64747891,118400.0,118390.0,0.00634251]
[1755432547620,0.64747891,118400.0,118390.0,0.00312251]
[1755432548183,0.64958309,118400.0,118390.0,0.00312251]
[1755432549233,0.65257309,118400.0,118390.0,0.00312251]
[1755432550650,0.17602309,118400.0,118390.0,0.00312251]
[1755432550872,0.13790418,118400.0,118390.0,0.17738735]
[1755432551068,0.30471891,118400.0,118390.0,0.21194915]
[1755432551278,0.30682309,118400.0,118390.0,0.21194915]
[1755432552025,0.30682309,118400.0,118390.0,0.04301597]
[1755432552160,0.30682309,118400.0,118390.0,0.21194915]
[1755432552376,0.30682309,118400.0,118390.0,0.04301597]
[1755432552579,0.30682309,118400.0,118390.0,0.21194915]
[1755432558250,0.30471891,118400.0,118390.0,0.21194915]
[1755432558461,0.30682309,118400.0,118390.0,0.21194915]
[1755432559340,0.30682309,118400.0,118390.0,0.2205191]
[1755432560176,0.30471891,118400.0,118390.0,0.2205191]
[1755432560390,0.30682309,118400.0,118390.0,0.2205191]
[1755432560951,0.30471891,118400.0,118390.0,0.2205191]
[1755432561345,0.30682309,118400.0,118390.0,0.2205191]
[1755432565342,0.30471891,118400.0,118390.0,0.2205191]
[1755432565554,0.30682309,118400.0,118390.0,0.2205191]
[1755432566582,0.30471891,118400.0,118390.0,0.2205191]
[1755432566906,0.30682309,118400.0,118390.0,0.2205191]
[1755432568213,0.30471891,118400.0,118390.0,0.2205191]
[1755432568483,0.30682309,118400.0,118390.0,0.2205191]
[1755432570816,0.30471891,118400.0,118390.0,0.2205191]
[1755432571025,0.30682309,118400.0,118390.0,0.2205191]
[1755432571241,0.30471891,118400.0,118390.0,0.2205191]
[1755432571450,0.30682309,118400.0,118390.0,0.2205191]
[1755432571660,0.30894309,118400.0,118390.0,0.2205191]
[1755432571895,0.30683891,118400.0,118390.0,0.2205191]
[1755432572112,0.30894309,118400.0,118390.0,0.2205191]
[1755432572795,0.30683891,118400.0,118390.0,0.2205191]
[1755432573003,0.30894309,118400.0,118390.0,0.2205191]
[1755432573188,0.30894309,118400.0,118390.0,0.20872915]
[1755432573385,0.30894309,118400.0,118390.0,0.03979597]
[1755432573808,0.30682309,118400.0,118390.0,0.22031109]
[1755432574661,0.30893309,118400.0,118390.0,0.05137791]
[1755432574871,0.30893309,118400.0,118390.0,0.04812791]
[1755432575277,0.30893309,118400.0,118390.0,0.21706109]
[1755432575756,0.30682891,118400.0,118390.0,0.21706109]
[1755432576178,0.30893309,118400.0,118390.0,0.21706109]
[1755432576794,0.30682891,118400.0,118390.0,0.21706109]
[1755432577020,0.30893309,118400.0,118390.0,0.21706109]
[1755432577365,0.30893309,118400.0,118390.0,0.22031109]
[1755432577570,0.30893309,118400.0,118390.0,0.21706109]
[1755432579761,0.30893309,118400.0,118390.0,0.03979597]
[1755432580070,0.31196309,118400.0,118390.0,0.03979597]
[1755432581828,0.30985891,118400.0,118390.0,0.03979597]
[1755432582035,0.31196309,118400.0,118390.0,0.03979597]
[1755432582791,0.31196309,118400.0,118390.0,0.20872915]
[1755432584219,0.30893309,118400.0,118390.0,0.20872915]
[1755432584412,0.30682309,118400.0,118390.0,0.21197915]
[1755432584656,0.30471891,118400.0,118390.0,0.21197915]
[1755432584879,0.30375891,118400.0,118390.0,0.21197915]
[1755432585971,0.30586309,118400.0,118390.0,0.21197915]
[1755432589194,0.00710418,118400.0,118390.0,0.21197915]
[1755432589414,0.13690418,118400.0,118390.0,0.2967932]
[1755432589836,0.13690418,118400.0,118390.0,0.3221752]
[1755432591425,0.00710418,118400.0,118390.0,0.4519752]
[1755432592581,0.07476604,118400.0,118390.0,0.4519752]
[1755432600814,0.00710418,118400.0,118390.0,0.4519752]
[1755432612254,0.00710418,118400.0,118390.0,0.4437252]
[1755432612461,0.00710418,118400.0,118390.0,0.4458552]
[1755432617279,0.00710418,118400.0,118390.0,0.4491052]
[1755432617489,0.005,118400.0,118390.0,0.4491052]
[1755432617703,0.005,118400.0,118390.0,0.4731552]
[1755432618780,0.00210418,118410.0,118400.0,0.16891891]
[1755432618993,0.00210418,118410.0,118400.0,0.3406842]
[1755432619206,0.06766186,118420.0,118410.0,0.16890465]
[1755432619411,0.06967186,118420.0,118410.0,0.30071465]
[1755432619639,0.07177604,118420.0,118410.0,0.30071465]
[1755432621823,0.07577604,118420.0,118410.0,0.30171465]
[1755432622027,0.07577604,118420.0,118410.0,0.36860444]
[1755432622163,0.07371536,118420.0,118410.0,0.36860444]
[1755432629157,0.07161118,118420.0,118410.0,0.36860444]
[1755432629371,0.07371536,118420.0,118410.0,0.36860444]
[1755432630402,0.07890536,118420.0,118410.0,0.36860444]
[1755432630761,0.07371536,118420.0,118410.0,0.36860444]
[1755432631160,0.07371536,118420.0,118410.0,0.37185444]
[1755432631650,0.07371536,118420.0,118410.0,0.36860444]
[1755432633652,0.07585536,118420.0,118410.0,0.36860444]
[1755432633872,0.07881536,118420.0,118410.0,0.36860444]
[1755432634838,0.01120418,118420.0,118410.0,0.36860444]
[1755432641597,0.18009457,118420.0,118410.0,0.36860444]
[1755432644063,0.01120418,118420.0,118410.0,0.36860444]
[1755432647158,0.00610418,118420.0,118410.0,0.36860444]
[1755432647361,0.00610418,118420.0,118410.0,0.45637849]
[1755432648335,0.00610418,118420.0,118410.0,0.48175449]
[1755432650896,0.004,118420.0,118410.0,0.48175449]
[1755432654322,0.004,118420.0,118410.0,0.74845449]
[1755432664768,0.004,118420.0,118410.0,1.08845449]
[1755432666862,0.19987794,118440.0,118430.0,0.16887612]
[1755432667088,0.20203794,118440.0,118430.0,0.31894912]
[1755432668024,0.2021841,118440.0,118430.0,0.31894912]
[1755432668224,0.2021841,118440.0,118430.0,0.32736242]
[1755432670046,0.2021841,118440.0,118430.0,0.35273642]
[1755432670260,0.2021841,118440.0,118430.0,0.35373642]
[1755432670674,0.2051841,118440.0,118430.0,0.35373642]
[1755432672316,0.13752224,118440.0,118430.0,0.35575642]
[1755432672523,0.13219224,118440.0,118430.0,0.35575642]
[1755432678941,0.13435224,118440.0,118430.0,0.35575642]
[1755432679377,0.13752224,118440.0,118430.0,0.35575642]
[1755432682385,0.13752224,118440.0,118430.0,0.35373642]
[1755432688368,0.13752224,118440.0,118430.0,0.35575642]
[1755432690759,0.13219224,118440.0,118430.0,0.44057047]
[1755432690973,0.13008806,118440.0,118430.0,0.44057047]
[1755432691886,0.13219224,118440.0,118430.0,0.44057047]
[1755432693040,0.13418224,118440.0,118430.0,0.44057047]
[1755432693307,0.13732224,118440.0,118430.0,0.44057047]
[1755432693873,0.13219224,118440.0,118430.0,0.44057047]
[1755432694073,0.13008806,118440.0,118430.0,0.44375047]
[1755432695741,0.00314616,118440.0,118430.0,0.44375047]
[1755432697115,0.00014616,118440.0,118430.0,0.44275047]
[1755432697459,0.00314616,118440.0,118430.0,0.44475047]
[1755432697926,0.00314616,118440.0,118430.0,0.44375047]
[1755432698377,0.00514616,118440.0,118430.0,0.44575047]
[1755432698662,0.00514616,118440.0,118430.0,0.71245047]
[1755432711796,0.00514616,118440.0,118430.0,0.70927047]
[1755432713472,0.01027616,118440.0,118430.0,0.57769047]
[1755432713792,0.01027616,118440.0,118430.0,0.70713047]
[1755432716257,0.01027616,118440.0,118430.0,0.70922047]
[1755432716903,0.00713616,118440.0,118430.0,0.70922047]
[1755432718026,0.01027616,118440.0,118430.0,0.70922047]
[1755432720402,0.00713616,118440.0,118430.0,0.70922047]
[1755432727442,0.01032616,118440.0,118430.0,0.70922047]
[1755432730272,0.00713616,118440.0,118430.0,0.70922047]
[1755432731956,0.00514616,118440.0,118430.0,0.70922047]
[1755432737891,0.00514616,118440.0,118430.0,0.72666949]
[1755432741466,0.00514616,118440.0,118430.0,0.72973949]
[1755432752945,0.00514616,118440.0,118430.0,0.46303949]
[1755432756889,0.00514616,118440.0,118430.0,0.80303949]
[1755432761282,0.00514616,118440.0,118430.0,0.79996949]
[1755432763695,0.00514616,118440.0,118430.0,1.06666949]
[1755432807093,0.00514616,118440.0,118430.0,1.06982949]
[1755432814267,0.00514616,118440.0,118430.0,1.06666949]
[1755432821072,0.00514616,118440.0,118430.0,1.06969949]
[1755432821272,0.00514616,118440.0,118430.0,1.09469949]
[1755432822346,0.00514616,118440.0,118430.0,1.09369949]
[1755432823163,0.00014616,118440.0,118430.0,1.09369949]
[1755432823366,0.00014616,118440.0,118430.0,1.09169949]
[1755432823599,0.00014616,118440.0,118430.0,1.05087391]
[1755432823799,0.00014616,118440.0,118430.0,1.05487391]
[1755432831101,0.00014616,118440.0,118430.0,1.05184391]
[1755432840255,0.00014616,118440.0,118430.0,0.92240391]
[1755432840435,0.00014616,118440.0,118430.0,1.05140391]
[1755432881171,0.00014616,118440.0,118430.0,1.05448391]
[1755432887988,0.00014616,118440.0,118430.0,1.05140391]
[1755432895393,0.00014616,118440.0,118430.0,1.05448391]
[1755432898960,0.00014616,118440.0,118430.0,1.05140391]
[1755432900956,0.00014616,118440.0,118430.0,1.05448391]
[1755432910937,0.00014616,118440.0,118430.0,1.05140391]
[1755432911139,0.00014616,118440.0,118430.0,1.05446391]
[1755432925748,0.00014616,118440.0,118430.0,1.05140391]
[1755432937114,0.00506616,118440.0,118430.0,1.05140391]
[1755432937323,0.00506616,118440.0,118430.0,1.04931391]
[1755432939025,0.00506616,118440.0,118430.0,1.05133391]
[1755432945061,0.00209616,118440.0,118430.0,1.05133391]
[1755432946303,0.00014616,118440.0,118430.0,1.05133391]
[1755432978506,0.00014616,118440.0,118430.0,1.05033391]
[1755432980514,0.00014616,118440.0,118430.0,0.92133391]
[1755432980768,0.00014616,118440.0,118430.0,1.04985391]
[1755432981374,0.00014616,118440.0,118430.0,0.92133391]
[1755432981547,0.07294802,118440.0,118430.0,1.04783391]
[1755432981748,0.07294802,118440.0,118430.0,0.91931391]
[1755432981950,0.07294802,118440.0,118430.0,0.98487189]
[1755432982134,0.07294802,118440.0,118430.0,1.00232091]
[1755432982715,0.07294802,118440.0,118430.0,0.99932091]
[1755432983396,0.07294802,118440.0,118430.0,0.99832091]
[1755432983602,0.07294802,118440.0,118430.0,1.05562988]